bitfinex-derivatives/quotes_BTCF0:USTF0_20251115
["timestamp","ask_amount","ask_price","bid_price","bid_amount"]
[1763225471767,0.04325,96163.0,96162.0,0.045196]
[1763225472772,0.04325,96163.0,96162.0,0.000156]
[1763225473269,0.04533,96151.0,96150.0,0.05833]
[1763225473465,0.04533,96151.0,96150.0,0.04499]
[1763225474777,0.04533,96151.0,96150.0,0.04599]
[1763225475172,0.04533,96151.0,96150.0,0.04499]
[1763225475366,0.04533,96151.0,96150.0,0.04599]
[1763225476271,0.04533,96151.0,96150.0,0.04699]
[1763225476771,0.3608,96155.0,96154.0,0.04449]
[1763225476973,0.045486,96160.0,96159.0,0.04449]
[1763225477173,0.04768403,96160.0,96159.0,0.04449]
[1763225478084,0.02471403,96160.0,96159.0,0.04449]
[1763225478267,0.04768403,96160.0,96159.0,0.04449]
[1763225483374,0.00235403,96160.0,96159.0,0.04449]
[1763225483575,0.04768403,96160.0,96159.0,0.04449]
[1763225484884,0.00235403,96160.0,96159.0,0.04449]
[1763225485175,0.00235403,96160.0,96159.0,0.40529]
[1763225487677,0.000156,96160.0,96159.0,0.40529]
[1763225488474,0.000156,96160.0,96159.0,0.43332662]
[1763225489483,0.000156,96160.0,96159.0,0.40529]
[1763225491983,0.04541,96177.0,96176.0,0.0437]
[1763225500192,0.04541,96177.0,96176.0,0.02235]
[1763225500380,0.04541,96177.0,96176.0,0.0437]
[1763225503289,0.08283873,96177.0,96176.0,0.0437]
[1763225504794,0.04541,96177.0,96176.0,0.0437]
[1763225505388,0.04541,96169.0,96168.0,0.0437]
[1763225510808,0.04760803,96170.0,96169.0,0.0437]
[1763225513693,0.02476803,96170.0,96169.0,0.0437]
[1763225513997,0.04760803,96170.0,96169.0,0.0437]
[1763225517304,0.10378208,96170.0,96169.0,0.0437]
[1763225518707,0.04760803,96170.0,96169.0,0.0437]
[1763225520113,0.10381272,96170.0,96169.0,0.0437]
[1763225520505,0.05620469,96170.0,96169.0,0.0437]
[1763225520711,0.05620469,96172.0,96170.0,0.04418]
[1763225520901,0.05620469,96175.0,96174.0,0.04418]
[1763225521108,0.05620469,96176.0,96174.0,0.04418]
[1763225521314,0.05620469,96176.0,96175.0,0.04418]
[1763225522714,0.03746496,96176.0,96172.0,0.01384]
[1763225522910,0.03746496,96177.0,96176.0,0.04418]
[1763225523106,0.03746496,96177.0,96176.0,0.3608]
[1763225523309,0.03762096,96186.0,96185.0,0.05802]
[1763225523506,0.000156,96186.0,96185.0,0.05802]
[1763225524320,0.022006,96186.0,96185.0,0.05802]
[1763225525120,0.044566,96186.0,96185.0,0.05802]
[1763225526219,0.000156,96186.0,96185.0,0.05802]
[1763225526417,0.022006,96186.0,96185.0,0.05802]
[1763225527117,0.000156,96186.0,96185.0,0.05802]
[1763225527313,0.022006,96186.0,96185.0,0.05802]
[1763225528220,0.000156,96186.0,96185.0,0.05802]
[1763225529909,0.022006,96186.0,96185.0,0.05802]
[1763225530523,0.000156,96186.0,96185.0,0.05802]
[1763225531318,0.08226496,96198.0,96197.0,0.04262]
[1763225531526,0.0448,96198.0,96197.0,0.04262]
[1763225532622,0.0458,96198.0,96197.0,0.04262]
[1763225533214,0.0468,96198.0,96197.0,0.04262]
[1763225535822,0.002,96198.0,96197.0,0.04262]
[1763225536025,0.03746496,96210.0,96205.0,0.160683]
[1763225536327,0.03746496,96226.0,96205.0,0.41746]
[1763225536518,0.03746496,96224.0,96205.0,0.41746]
[1763225536718,0.03746496,96223.0,96205.0,0.41746]
[1763225536923,0.06664506,96229.0,96205.0,0.41746]
[1763225536924,0.03746496,96224.0,96205.0,0.41746]
[1763225537124,0.00125986,96206.0,96205.0,0.41746]
[1763225537423,0.00225986,96206.0,96205.0,0.41746]
[1763225538026,0.00125986,96206.0,96205.0,0.41746]
[1763225538522,0.00025986,96206.0,96205.0,0.41746]
[1763225544927,0.06120469,96236.0,96231.0,0.04294]
[1763225544928,0.03746496,96232.0,96231.0,0.04294]
[1763225545131,0.03746496,96232.0,96228.0,0.01128]
[1763225545132,0.04246496,96236.0,96233.0,0.04294]
[1763225545432,0.005,96236.0,96235.0,0.04294]
[1763225546730,0.05066,96236.0,96235.0,0.07017424]
[1763225546922,0.05166,96236.0,96235.0,0.07017424]
[1763225547128,0.05166,96236.0,96235.0,0.04294]
[1763225549435,0.006,96236.0,96235.0,0.04294]
[1763225549638,0.006,96236.0,96235.0,0.07018105]
[1763225550134,0.006,96236.0,96235.0,0.04294]
[1763225550331,0.02734,96236.0,96235.0,0.04294]
[1763225550639,0.006,96236.0,96235.0,0.04294]
[1763225551126,0.02734,96236.0,96235.0,0.04294]
[1763225551327,0.006,96236.0,96235.0,0.04294]
[1763225552138,0.02734,96236.0,96235.0,0.04294]
[1763225552338,0.006,96236.0,96235.0,0.04294]
[1763225552839,0.04954,96236.0,96235.0,0.04294]
[1763225553236,0.02734,96236.0,96235.0,0.04294]
[1763225553835,0.04954,96236.0,96235.0,0.04294]
[1763225556535,0.04954,96236.0,96223.0,0.0438]
[1763225556536,0.04354,96224.0,96223.0,0.0438]
[1763225556731,0.04354,96223.0,96222.0,0.0001559]
[1763225559138,0.04354,96211.0,96210.0,0.16561753]
[1763225559335,0.04354,96206.0,96205.0,0.4046]
[1763225560336,0.04354,96206.0,96205.0,0.0438]
[1763225560538,0.04354,96206.0,96196.0,0.48277343]
[1763225560539,0.04354,96197.0,96196.0,0.4047559]
[1763225561038,0.04354,96197.0,96196.0,0.3825259]
[1763225561939,0.04354,96197.0,96196.0,0.4057559]
[1763225562643,0.04354,96197.0,96196.0,0.4047559]
[1763225563736,0.04354,96197.0,96196.0,0.3609559]
[1763225563935,0.04354,96197.0,96196.0,0.4047559]
[1763225564235,0.04354,96197.0,96196.0,0.0439559]
[1763225566239,0.04354,96197.0,96196.0,0.02740676]
[1763225568342,0.04354,96197.0,96196.0,0.07120676]
[1763225569845,0.04354,96197.0,96196.0,0.0439559]
[1763225570545,0.36299803,96200.0,96199.0,0.0438]
[1763225570745,0.00219803,96200.0,96199.0,0.0438]
[1763225572451,0.40434,96209.0,96208.0,0.05746]
[1763225576741,0.3608,96209.0,96208.0,0.05746]
[1763225577045,0.04573803,96210.0,96209.0,0.02157]
[1763225577246,0.04354,96203.0,96202.0,0.4046]
[1763225577449,0.04354,96203.0,96202.0,0.43169813]
[1763225579251,0.02134,96203.0,96202.0,0.43169813]
[1763225579653,0.04341,96203.0,96202.0,0.43169813]
[1763225579854,0.4047,96212.0,96211.0,0.04364]
[1763225581550,0.4047,96212.0,96211.0,0.02178]
[1763225582144,0.4047,96212.0,96211.0,0.04364]
[1763225584258,0.0439,96202.0,96201.0,0.05629]
[1763225584553,0.0439,96202.0,96201.0,0.07079049]
[1763225585959,0.0439,96202.0,96201.0,0.02715049]
[1763225586659,0.4047,96202.0,96201.0,0.02715049]
[1763225587062,0.0439,96197.0,96196.0,0.0001559]
[1763225587659,0.0439,96197.0,96196.0,0.0219359]
[1763225588862,0.0439,96197.0,96196.0,0.0001559]
[1763225589652,0.01891487,96197.0,96196.0,0.0001559]
[1763225589853,0.04074487,96197.0,96196.0,0.0001559]
[1763225590862,0.04074487,96197.0,96196.0,0.0437959]
[1763225591064,0.04174487,96197.0,96196.0,0.0437959]
[1763225591365,0.04174487,96197.0,96196.0,0.0219359]
[1763225592064,0.04174487,96197.0,96196.0,0.0450859]
[1763225593454,0.04074487,96197.0,96196.0,0.0450859]
[1763225594461,0.00219803,96200.0,96199.0,0.04464]
[1763225598970,0.00219803,96200.0,96199.0,0.07166906]
[1763225599466,0.3608,96210.0,96204.0,0.01344]
[1763225599669,0.36299803,96210.0,96209.0,0.04464]
[1763225599873,0.36299803,96210.0,96209.0,0.07166906]
[1763225600370,0.36299803,96210.0,96209.0,0.07165839]
[1763225600570,0.00219803,96210.0,96209.0,0.07165839]
[1763225602875,0.02340557,96215.0,96214.0,0.04464]
[1763225603975,0.00015557,96215.0,96214.0,0.07164612]
[1763225605676,0.00015557,96215.0,96214.0,0.04464]
[1763225614077,0.02277557,96215.0,96214.0,0.04464]
[1763225615484,0.00015557,96215.0,96214.0,0.04464]
[1763225615685,0.02277557,96215.0,96214.0,0.04464]
[1763225615886,0.04407557,96215.0,96214.0,0.02149]
[1763225616082,0.04407557,96215.0,96214.0,0.04261]
[1763225619584,0.00015557,96215.0,96214.0,0.04261]
[1763225620387,0.04407557,96215.0,96214.0,0.04261]
[1763225628083,0.04392,96200.0,96197.0,0.02781178]
[1763225628288,0.04392,96197.0,96196.0,0.0430059]
[1763225632091,0.3608,96198.0,96197.0,0.04285]
[1763225632291,0.05620469,96209.0,96208.0,0.04285]
[1763225632497,0.02481803,96210.0,96209.0,0.04285]
[1763225632696,0.04611803,96210.0,96209.0,0.04285]
[1763225634098,0.04711803,96210.0,96209.0,0.04285]
[1763225635985,0.04611803,96210.0,96209.0,0.04285]
[1763225641998,0.00219803,96210.0,96209.0,0.04285]
[1763225642606,0.00219803,96210.0,96209.0,0.06966898]
[1763225642800,0.36095557,96215.0,96214.0,0.04255]
[1763225643002,0.00015557,96215.0,96214.0,0.04255]
[1763225643303,0.00015557,96215.0,96214.0,0.06936139]
[1763225643502,0.40335,96234.0,96233.0,0.04255]
[1763225643800,0.41372251,96234.0,96233.0,0.04255]
[1763225646504,0.41472251,96234.0,96233.0,0.04255]
[1763225649802,0.40435,96234.0,96233.0,0.04255]
[1763225650000,0.04355,96234.0,96233.0,0.04255]
[1763225654603,0.04448,96226.0,96225.0,0.03556]
[1763225654808,0.04448,96226.0,96225.0,0.04397]
[1763225655810,0.04448,96226.0,96225.0,0.05665]
[1763225658303,0.00219803,96230.0,96229.0,0.04397]
[1763225658504,0.3608,96234.0,96233.0,0.04397]
[1763225658706,0.06097583,96236.0,96235.0,0.04397]
[1763225659010,0.005,96236.0,96235.0,0.04397]
[1763225661110,0.006,96236.0,96235.0,0.04397]
[1763225667808,0.00584367,96236.0,96235.0,0.04397]
[1763225668114,0.0559754,96260.0,96245.0,0.05891]
[1763225668415,0.0559754,96268.0,96263.0,0.04519]
[1763225668715,0.0559754,96269.0,96263.0,0.04519]
[1763225668906,0.04277,96269.0,96268.0,0.04519]
[1763225669414,0.02145,96269.0,96268.0,0.04519]
[1763225670014,0.04277,96269.0,96268.0,0.04519]
[1763225671009,0.04377,96269.0,96268.0,0.04519]
[1763225673408,0.04277,96255.0,96254.0,0.0453459]
[1763225674317,0.04277,96255.0,96254.0,0.07232786]
[1763225674505,0.04277,96255.0,96254.0,0.0453459]
[1763225674816,0.04277,96255.0,96254.0,0.0001559]
[1763225675014,0.04377,96255.0,96254.0,0.0001559]
[1763225680511,0.40457,96255.0,96254.0,0.0001559]
[1763225685010,0.02145,96241.0,96240.0,0.13544146]
[1763225685210,0.04277,96241.0,96240.0,0.04519]
[1763225686521,0.04277,96241.0,96240.0,0.07223128]
[1763225686814,0.04277,96241.0,96240.0,0.02704128]
[1763225687212,0.04277,96241.0,96240.0,0.04980128]
[1763225687613,0.04277,96241.0,96240.0,0.07223128]
[1763225689316,0.04377,96241.0,96240.0,0.07223128]
[1763225689921,0.04277,96241.0,96240.0,0.07223128]
[1763225692713,0.04227,96241.0,96240.0,0.07223128]
[1763225693116,0.04227,96241.0,96240.0,0.04519]
[1763225693412,0.04227,96241.0,96240.0,0.07226193]
[1763225696815,0.04227,96241.0,96240.0,0.08598193]
[1763225699127,0.04227,96241.0,96240.0,0.07226193]
[1763225701525,0.3608,96245.0,96244.0,0.04437]
[1763225701831,0.00015562,96250.0,96249.0,0.04437]
[1763225703226,0.05832905,96250.0,96249.0,0.04437]
[1763225703425,0.00235365,96250.0,96249.0,0.04437]
[1763225704219,0.04824365,96250.0,96249.0,0.04437]
[1763225705636,0.04589,96246.0,96245.0,0.02323]
[1763225705927,0.04589,96241.0,96240.0,0.05783]
[1763225706129,0.40669,96241.0,96240.0,0.04437]
[1763225706323,0.4628361,96241.0,96240.0,0.04437]
[1763225706529,0.40669,96241.0,96240.0,0.04437]
[1763225707136,0.40669,96241.0,96240.0,0.07131587]
[1763225707529,0.40669,96241.0,96240.0,0.04437]
[1763225708531,0.04589,96235.0,96234.0,0.05809]
[1763225708831,0.1020361,96235.0,96234.0,0.05809]
[1763225709026,0.04589,96235.0,96234.0,0.05809]
[1763225711834,0.04589,96235.0,96234.0,0.04437]
[1763225712530,0.04464,96232.0,96216.0,0.01346]
[1763225712736,0.40544,96232.0,96216.0,0.01346]
[1763225712935,0.46155639,96232.0,96231.0,0.02323581]
[1763225713136,0.40544,96232.0,96231.0,0.04626581]
[1763225713329,0.4615395,96232.0,96231.0,0.04626581]
[1763225714539,0.40544,96232.0,96231.0,0.04626581]
[1763225714939,0.40644,96232.0,96231.0,0.04626581]
[1763225716942,0.40644,96232.0,96231.0,0.02323581]
[1763225717639,0.40644,96232.0,96231.0,0.00015581]
[1763225717947,0.40644,96232.0,96231.0,0.02323581]
[1763225718439,0.40644,96232.0,96231.0,0.04626581]
[1763225719544,0.40644,96232.0,96231.0,0.00015581]
[1763225722353,0.04464,96217.0,96216.0,0.05957]
[1763225722741,0.00219803,96220.0,96219.0,0.04611]
[1763225723048,0.3618,96232.0,96216.0,0.04034141]
[1763225723049,0.38469,96232.0,96231.0,0.04611]
[1763225723443,0.40544,96232.0,96231.0,0.04611]
[1763225724741,0.04464,96232.0,96231.0,0.04611]
[1763225725946,0.02289,96232.0,96231.0,0.04611]
[1763225727151,0.04464,96232.0,96231.0,0.04611]
[1763225733252,0.08101022,96233.0,96232.0,0.04537]
[1763225733555,0.04366,96233.0,96232.0,0.04537]
[1763225733754,0.08103805,96233.0,96232.0,0.04537]
[1763225734357,0.04366,96233.0,96232.0,0.04537]
[1763225735957,0.04466,96233.0,96232.0,0.04537]
[1763225743761,0.04366,96226.0,96225.0,0.02221]
[1763225744155,0.04366,96226.0,96225.0,0.04537]
[1763225744959,0.04366,96226.0,96225.0,0.05829]
[1763225755865,0.09983773,96226.0,96225.0,0.05829]
[1763225757562,0.04366,96226.0,96225.0,0.05829]
[1763225757763,0.09983773,96226.0,96225.0,0.05829]
[1763225758366,0.04366,96226.0,96225.0,0.05829]
[1763225760175,0.09983773,96226.0,96225.0,0.05829]
[1763225762976,0.04366,96226.0,96225.0,0.08575082]
[1763225766676,0.04366,96226.0,96225.0,0.07283082]
[1763225766871,0.04366,96226.0,96225.0,0.07112082]
[1763225770277,0.04366,96226.0,96225.0,0.09900498]
[1763225770873,0.04366,96226.0,96225.0,0.07112082]
[1763225781272,0.04366,96226.0,96225.0,0.02746082]
[1763225781481,0.04464,96223.0,96222.0,0.0001559]
[1763225781674,0.04464,96223.0,96222.0,0.0212159]
[1763225782079,0.04464,96223.0,96222.0,0.0001559]
[1763225783674,0.10078757,96223.0,96222.0,0.0001559]
[1763225783875,0.04564,96223.0,96222.0,0.0001559]
[1763225785476,0.04464,96210.0,96209.0,0.04328423]
[1763225785688,0.04683803,96210.0,96209.0,0.04328423]
[1763225786285,0.04683803,96210.0,96209.0,0.07007755]
[1763225786982,0.05748368,96210.0,96209.0,0.07007755]
[1763225787383,0.05748368,96210.0,96209.0,0.00011423]
[1763225789190,0.05748368,96210.0,96209.0,0.04538423]
[1763225790285,0.05748368,96210.0,96209.0,0.02316423]
[1763225790486,0.05748368,96210.0,96209.0,0.00011423]
[1763225791096,0.05748368,96210.0,96209.0,0.02316423]
[1763225792290,0.05748368,96210.0,96209.0,0.04538423]
[1763225799803,0.11359492,96210.0,96209.0,0.04538423]
[1763225800597,0.05748368,96210.0,96209.0,0.04538423]
[1763225801800,0.05748368,96210.0,96209.0,0.02316423]
[1763225802398,0.05748368,96210.0,96209.0,0.04538423]
[1763225805605,0.05748368,96210.0,96209.0,0.07214581]
[1763225813805,0.05748368,96210.0,96209.0,0.04538423]
[1763225821113,0.01284368,96210.0,96209.0,0.04538423]
[1763225822121,0.03508368,96210.0,96209.0,0.04538423]
[1763225822925,0.07448721,96216.0,96214.0,0.04462]
[1763225823115,0.0001559,96219.0,96218.0,0.04462]
[1763225823710,0.01059999,96219.0,96218.0,0.04462]
[1763225825124,0.06674967,96219.0,96218.0,0.04462]
[1763225826615,0.08998967,96219.0,96218.0,0.04462]
[1763225827225,0.03383999,96219.0,96218.0,0.04462]
[1763225830219,0.05529999,96219.0,96218.0,0.04462]
[1763225830821,0.0437,96213.0,96212.0,0.04462]
[1763225831021,0.0437,96213.0,96209.0,0.00011423]
[1763225831022,0.04589803,96210.0,96209.0,0.00011423]
[1763225831726,0.04589803,96210.0,96209.0,0.02331423]
[1763225832022,0.04589803,96210.0,96209.0,0.04451423]
[1763225832826,0.04589803,96210.0,96209.0,0.00011423]
[1763225834623,0.40669803,96210.0,96209.0,0.00011423]
[1763225837428,0.40669803,96210.0,96209.0,0.02278423]
[1763225837727,0.40669803,96210.0,96209.0,0.00011423]
[1763225842625,0.40669803,96210.0,96200.0,0.0001559]
[1763225842626,0.04449,96207.0,96200.0,0.0001559]
[1763225842927,0.00878,96208.0,96200.0,0.0001559]
[1763225842928,0.04449,96201.0,96200.0,0.0001559]
[1763225843117,0.04449,96186.0,96185.0,0.05769]
[1763225843319,0.40529,96186.0,96185.0,0.05769]
[1763225843518,0.40539439,96186.0,96185.0,0.05769]
[1763225844623,0.40539439,96186.0,96185.0,0.05869]
[1763225845027,0.40539439,96186.0,96185.0,0.04487]
[1763225847317,0.40539439,96186.0,96185.0,0.02367]
[1763225847924,0.40539439,96186.0,96185.0,0.001]
[1763225848418,0.40539439,96186.0,96185.0,0.02367]
[1763225848619,0.40539439,96186.0,96185.0,0.05923]
[1763225851119,0.46138745,96186.0,96185.0,0.05923]
[1763225852224,0.46138745,96186.0,96185.0,0.04662]
[1763225852827,0.40539439,96186.0,96185.0,0.04662]
[1763225859244,0.44271581,96186.0,96185.0,0.04662]
[1763225860138,0.40539439,96186.0,96185.0,0.04662]
[1763225862738,0.00010439,96186.0,96185.0,0.04662]
[1763225864936,0.07984239,96186.0,96185.0,0.04662]
[1763225865338,0.04247439,96186.0,96185.0,0.04662]
[1763225870737,0.00010439,96186.0,96185.0,0.04662]
[1763225872349,0.05609745,96186.0,96185.0,0.04662]
[1763225872942,0.00010439,96186.0,96185.0,0.04662]
[1763225878746,0.03753726,96186.0,96185.0,0.04662]
[1763225880250,0.05943726,96186.0,96185.0,0.04662]
[1763225880451,0.04424439,96186.0,96185.0,0.04662]
[1763225881144,0.02200439,96186.0,96185.0,0.04662]
[1763225884157,0.04424439,96186.0,96185.0,0.04662]
[1763225884555,0.00010439,96186.0,96185.0,0.04662]
[1763225884860,0.3608,96192.0,96191.0,0.04531]
[1763225885158,0.0001559,96195.0,96188.0,0.01316]
[1763225885159,0.0001559,96195.0,96194.0,0.04531]
[1763225885859,0.03758463,96195.0,96194.0,0.04531]
[1763225887156,0.0001559,96195.0,96194.0,0.04531]
[1763225889150,0.0220559,96195.0,96194.0,0.04531]
[1763225889350,0.4050959,96195.0,96194.0,0.04531]
[1763225892054,0.4050959,96195.0,96194.0,0.02275]
[1763225892455,0.4050959,96195.0,96194.0,0.04506]
[1763225894362,0.4050959,96195.0,96184.0,0.01261]
[1763225894363,0.04343,96185.0,96184.0,0.05692]
[1763225895763,0.08084287,96185.0,96184.0,0.05792]
[1763225896169,0.04343,96185.0,96184.0,0.05792]
[1763225897964,0.04343,96185.0,96184.0,0.05892]
[1763225900970,0.04562803,96190.0,96189.0,0.04431]
[1763225901163,0.3609559,96195.0,96194.0,0.04431]
[1763225901466,0.0001559,96195.0,96194.0,0.04431]
[1763225903172,0.0375724,96195.0,96194.0,0.04431]
[1763225903362,0.0001559,96195.0,96194.0,0.04431]
[1763225904471,0.0810024,96195.0,96194.0,0.04431]
[1763225908577,0.4418024,96195.0,96194.0,0.04431]
[1763225908767,0.4043859,96195.0,96194.0,0.04431]
[1763225910170,0.44181198,96195.0,96194.0,0.04431]
[1763225911177,0.4043859,96195.0,96194.0,0.04431]
[1763225911381,0.44181457,96195.0,96194.0,0.04431]
[1763225912870,0.4043859,96195.0,96194.0,0.04431]
[1763225913384,0.44181457,96195.0,96194.0,0.04431]
[1763225913590,0.39838457,96195.0,96194.0,0.04431]
[1763225913886,0.44117457,96195.0,96194.0,0.04431]
[1763225914277,0.4037459,96195.0,96194.0,0.04431]
[1763225914477,0.44118772,96195.0,96194.0,0.04431]
[1763225914782,0.4037459,96195.0,96194.0,0.04431]
[1763225916877,0.44118842,96195.0,96194.0,0.04431]
[1763225917791,0.4037459,96195.0,96194.0,0.04431]
[1763225919382,0.44118842,96195.0,96194.0,0.04431]
[1763225919986,0.4037459,96195.0,96194.0,0.04431]
[1763225929396,0.4037459,96195.0,96194.0,0.07227262]
[1763225931398,0.4037459,96195.0,96194.0,0.04431]
[1763225932993,0.05559,96186.0,96185.0,0.19465193]
[1763225933196,0.05559,96186.0,96185.0,0.07286262]
[1763225933491,0.04279,96186.0,96185.0,0.0449]
[1763225934097,0.04279,96186.0,96185.0,0.0459]
[1763225939401,0.04624803,96190.0,96189.0,0.05812]
[1763225939602,0.02384803,96190.0,96189.0,0.05812]
[1763225939799,0.00219803,96190.0,96189.0,0.05812]
[1763225940000,0.02384803,96190.0,96189.0,0.05812]
[1763225941305,0.04624803,96190.0,96189.0,0.05812]
[1763225952713,0.04405,96190.0,96189.0,0.05812]
[1763225952911,0.03746655,96192.0,96189.0,0.0129]
[1763225953108,0.03746655,96192.0,96191.0,0.04378]
[1763225953308,0.05855655,96192.0,96191.0,0.04378]
[1763225953611,0.08079655,96192.0,96191.0,0.04378]
[1763225955014,0.04333,96192.0,96191.0,0.04378]
[1763225956812,0.02109,96192.0,96191.0,0.04378]
[1763225957013,0.04333,96192.0,96191.0,0.04378]
[1763225963309,0.3609559,96195.0,96194.0,0.04378]
[1763225963507,0.0001559,96195.0,96194.0,0.04378]
[1763225964819,0.0001559,96195.0,96192.0,0.04174588]
[1763225964820,0.03747088,96200.0,96199.0,0.04378]
[1763225965314,0.05856088,96201.0,96200.0,0.04378]
[1763225966823,0.03747088,96202.0,96201.0,0.05757]
[1763225967025,0.05612723,96208.0,96203.0,0.04378]
[1763225967321,0.03742686,96209.0,96207.0,0.05757]
[1763225967620,0.02109,96209.0,96208.0,0.04378]
[1763225967923,0.04333,96209.0,96208.0,0.04378]
[1763225987939,0.08069548,96209.0,96208.0,0.04378]
[1763225989136,0.04333,96209.0,96208.0,0.04378]
[1763225994928,0.0001559,96210.0,96209.0,0.04572]
[1763225995133,0.05612723,96223.0,96218.0,0.04572]
[1763225995332,0.05914563,96219.0,96218.0,0.04572]
[1763225995838,0.08080563,96219.0,96218.0,0.04572]
[1763225996240,0.04337,96219.0,96218.0,0.04572]
[1763225997641,0.02171,96219.0,96218.0,0.04572]
[1763225997935,0.02171,96220.0,96219.0,0.01279]
[1763225998141,0.02171,96220.0,96219.0,0.05771]
[1763225998945,0.04272,96220.0,96219.0,0.05771]
[1763226002431,0.02171,96220.0,96219.0,0.05771]
[1763226003339,0.08069563,96224.0,96223.0,0.04451]
[1763226005140,0.04326,96224.0,96223.0,0.04451]
[1763226007741,0.08069563,96224.0,96223.0,0.04451]
[1763226008238,0.08065414,96224.0,96223.0,0.04451]
[1763226010140,0.04326,96224.0,96223.0,0.04451]
[1763226012937,0.04326,96224.0,96223.0,0.04551]
[1763226013742,0.04326,96224.0,96223.0,0.04451]
[1763226013938,0.04326,96224.0,96223.0,0.04551]
[1763226014546,0.04326,96224.0,96223.0,0.04451]
[1763226014744,0.04326,96224.0,96223.0,0.04551]
[1763226016745,0.0447259,96228.0,96227.0,0.04456]
[1763226017044,0.0447259,96228.0,96227.0,0.40536]
[1763226022146,0.0001559,96228.0,96227.0,0.40536]
[1763226025043,0.04457,96244.0,96243.0,0.04456]
[1763226025549,0.00025975,96246.0,96245.0,0.04456]
[1763226025845,0.10067435,96256.0,96255.0,0.05749]
[1763226026051,0.04457,96256.0,96255.0,0.05749]
[1763226026453,0.04457,96256.0,96255.0,0.04456]
[1763226027944,0.04557,96256.0,96255.0,0.04456]
[1763226031955,0.04557,96256.0,96255.0,0.40536]
[1763226034148,0.001,96256.0,96255.0,0.5093289]
[1763226034554,0.03829353,96256.0,96255.0,0.5093289]
[1763226035058,0.03729353,96260.0,96259.0,0.04502]
[1763226035352,0.03729353,96263.0,96262.0,0.04502]
[1763226035554,0.04407,96263.0,96262.0,0.04502]
[1763226037757,0.04507,96263.0,96262.0,0.04502]
[1763226038057,0.04507,96263.0,96252.0,0.01293]
[1763226038058,0.05668,96248.0,96247.0,0.02317]
[1763226038255,0.04407,96247.0,96240.0,0.12166318]
[1763226038557,0.0999905,96247.0,96246.0,0.0451759]
[1763226040850,0.04407,96247.0,96246.0,0.0451759]
[1763226044756,0.03729712,96257.0,96246.0,0.0001559]
[1763226044963,0.03729712,96257.0,96256.0,0.04502]
[1763226044964,0.04407,96257.0,96256.0,0.04502]
[1763226047364,0.04507,96257.0,96256.0,0.04502]
[1763226051059,0.04407,96254.0,96253.0,0.3608]
[1763226051459,0.04407,96254.0,96253.0,0.40582]
[1763226052461,0.04507,96254.0,96253.0,0.40582]
[1763226053368,0.08236712,96254.0,96253.0,0.40582]
[1763226054766,0.04507,96254.0,96253.0,0.40582]
[1763226055166,0.08236712,96254.0,96253.0,0.40582]
[1763226055368,0.04507,96254.0,96253.0,0.40582]
[1763226055571,0.08236712,96254.0,96253.0,0.40582]
[1763226064271,0.04507,96254.0,96253.0,0.40582]
[1763226067370,0.08247636,96254.0,96253.0,0.40582]
[1763226068070,0.08247636,96254.0,96246.0,0.0440659]
[1763226068071,0.04479,96247.0,96246.0,0.0440659]
[1763226070179,0.02247,96247.0,96246.0,0.0440659]
[1763226070571,0.04479,96247.0,96246.0,0.0440659]
[1763226070969,0.05987636,96255.0,96254.0,0.04391]
[1763226071173,0.03740636,96256.0,96255.0,0.04391]
[1763226071375,0.04698803,96260.0,96259.0,0.04391]
[1763226072680,0.04798803,96260.0,96259.0,0.04391]
[1763226075375,0.10390853,96260.0,96259.0,0.04391]
[1763226075780,0.04798803,96260.0,96259.0,0.04391]
[1763226076084,0.10413797,96260.0,96259.0,0.04391]
[1763226076671,0.04798803,96260.0,96259.0,0.04391]
[1763226078888,0.05483803,96260.0,96259.0,0.04391]
[1763226079379,0.04798803,96260.0,96259.0,0.04391]
[1763226079777,0.06086803,96260.0,96259.0,0.04391]
[1763226081884,0.05986803,96260.0,96259.0,0.04391]
[1763226083980,0.04698803,96260.0,96259.0,0.04391]
[1763226084280,0.12185534,96260.0,96259.0,0.04391]
[1763226084486,0.04698803,96260.0,96259.0,0.04391]
[1763226087081,0.12185549,96260.0,96259.0,0.04391]
[1763226087387,0.04698803,96260.0,96259.0,0.04391]
[1763226098601,0.04433,96250.0,96249.0,0.4042]
[1763226098806,0.08396015,96250.0,96249.0,0.4042]
[1763226099905,0.04652803,96250.0,96249.0,0.4042]
[1763226101401,0.02534803,96250.0,96249.0,0.4042]
[1763226101598,0.04652803,96250.0,96249.0,0.4042]
[1763226103702,0.02534803,96250.0,96249.0,0.4042]
[1763226105005,0.04652803,96250.0,96249.0,0.4042]
[1763226108806,0.00219803,96250.0,96249.0,0.4042]
[1763226109117,0.06058212,96253.0,96252.0,0.05649]
[1763226109316,0.08176212,96253.0,96252.0,0.05649]
[1763226109910,0.04433,96253.0,96252.0,0.05649]
[1763226113116,0.03743212,96254.0,96253.0,0.0434]
[1763226113313,0.03743212,96255.0,96253.0,0.0434]
[1763226113513,0.03743212,96255.0,96254.0,0.0434]
[1763226113818,0.06058212,96255.0,96254.0,0.0434]
[1763226114010,0.08176212,96255.0,96254.0,0.0434]
[1763226114413,0.04433,96261.0,96260.0,0.05386]
[1763226115025,0.10048861,96261.0,96260.0,0.05386]
[1763226115825,0.04433,96261.0,96260.0,0.05386]
[1763226117630,0.04448581,96265.0,96264.0,0.05649]
[1763226118723,0.04548581,96265.0,96264.0,0.05649]
[1763226123231,0.00115581,96265.0,96264.0,0.05649]
[1763226124735,0.0572798,96265.0,96264.0,0.05649]
[1763226125032,0.00115581,96265.0,96264.0,0.05649]
[1763226128038,0.04574,96274.0,96273.0,0.04306]
[1763226129135,0.005,96276.0,96275.0,0.04306]
[1763226131540,0.04234745,96276.0,96275.0,0.04306]
[1763226131940,0.006,96276.0,96275.0,0.1470073]
[1763226133545,0.0373394,96288.0,96285.0,0.04488]
[1763226133847,0.0373394,96291.0,96285.0,0.40568]
[1763226134144,0.0373394,96292.0,96285.0,0.40568]
[1763226134643,0.00125964,96286.0,96285.0,0.40568]
[1763226135538,0.04576964,96286.0,96285.0,0.02319]
[1763226135849,0.04576964,96286.0,96266.0,0.38879527]